Organisation Name,Organisation Code,Directorate/Service,Service Category Label,Service Code,Supplier Name,Supplier Reference,Payment Date,Transaction Number,Net Payments,Purpose of Spend
North West Leicestershire District Council,31UH,Housing Repairs,HRA Housing Repairs & Maintenance,HRAHRM,European Asbestos Services Ltd,A045507,08/01/2020,1387178,4227.51,Contract Payments (Dws) Ext
North West Leicestershire District Council,31UH,Housing Repairs,HRA Housing Repairs & Maintenance,HRAHRM,Chartered Institute Of Housing,A000329,08/01/2020,1388325,310,Professional Fees
North West Leicestershire District Council,31UH,Housing,HRA Housing Management,HRAHM,Chartered Institute Of Housing,A000329,08/01/2020,1388326,310,Professional Fees
North West Leicestershire District Council,31UH,Housing,HRA Housing Management,HRAHM,Chartered Institute Of Housing,A000329,08/01/2020,1388327,310,Professional Fees
North West Leicestershire District Council,31UH,Housing Strategy,Community - Housing Strategy,HS,Women's Aid Leicestershire Ltd,A039843,08/01/2020,1388426,11844.98,Extended Services
North West Leicestershire District Council,31UH,Property Services,Property Facilities Management,PROPFM,Watertec Compliance Solutions Ltd,A044559,08/01/2020,1388505,819.99,Service Contracts - Premises costs
North West Leicestershire District Council,31UH,Property Services,Property Facilities Management,PROPFM,Watertec Compliance Solutions Ltd,A044559,08/01/2020,1388506,819.99,Service Contracts - Premises costs
North West Leicestershire District Council,31UH,Legal & Democratic,Legal Services,LDLS,Sellick Partnership (East Midlands) Limited,A036668,08/01/2020,1388519,1470.86,Agency Staff
North West Leicestershire District Council,31UH,Housing Repairs,HRA Housing Repairs & Maintenance,HRAHRM,Storm Sealed Roofline Ltd,A045322,08/01/2020,1388521,7333.33,Housing repairs
North West Leicestershire District Council,31UH,Street Management,Environment Transport,ENOT,Parkers The Parts People,A044935,08/01/2020,1388528,535,Repairs - Parts
North West Leicestershire District Council,31UH,Street Management,Environment - Street Scene,ESS,Metric Group Ltd (Sales),A028996,08/01/2020,1388539,261,Subscriptions
North West Leicestershire District Council,31UH,Planning & Development,Environment - Development Control,EDC,Rob Thompson Urbanism Limited,A045846,08/01/2020,1388543,2637.6,Consultants Fees
North West Leicestershire District Council,31UH,Property Services,Property Facilities Management,PROPFM,Gleam Team Services Limited,A000129,08/01/2020,1388547,350,Service Contracts - Premises costs
North West Leicestershire District Council,31UH,Housing,HRA Housing Management,HRAHM,Aareon UK Ltd,A045197,08/01/2020,1388579,870,Contract Payments (Other) Ext
North West Leicestershire District Council,31UH,Street Management,Environment Transport,ENOT,Westbury Industrial Supplies Limited,A009933,08/01/2020,1388197,2316.18,Protective Clothing
North West Leicestershire District Council,31UH,Street Management,Environment - Street Scene,ESS,Enviro Technology Services Plc,A018437,08/01/2020,1388390,4065,Air Quality Strategy Expenditure
North West Leicestershire District Council,31UH,Property Services,Property Facilities Management,PROPFM,Midlands Cooling Services Ltd,A043433,08/01/2020,1388430,1156.89,General Repairs
North West Leicestershire District Council,31UH,Housing Strategy,Community - Housing Strategy,HS,ARITRO LTD,N001201143,08/01/2020,1388487,587.86,Other Services
North West Leicestershire District Council,31UH,Street Management,Environment Transport,ENOT,Spaldings (UK) Limited,A001540,08/01/2020,1388489,256.32,Scheduled Servicing - Parts
North West Leicestershire District Council,31UH,Street Management,Environment Transport,ENOT,Hako Machines Limited,A034237,08/01/2020,1388490,382.46,Non Scheduled Maintenance - Parts
North West Leicestershire District Council,31UH,Property Services,Property Facilities Management,PROPFM,Barlow Blinds,A040305,08/01/2020,1388496,635.83,General Repairs
North West Leicestershire District Council,31UH,Property Services,Property Facilities Management,PROPFM,John Merison BMC Ltd,A001092,08/01/2020,1388498,3478.85,Asset Protection
North West Leicestershire District Council,31UH,Property Services,Property Facilities Management,PROPFM,John Merison BMC Ltd,A001092,08/01/2020,1388499,367.52,General Repairs
North West Leicestershire District Council,31UH,Street Management,Environment Parks,ENOP,ESPO,A000958,08/01/2020,1388503,297,Operational Purchases
North West Leicestershire District Council,31UH,Street Management,Environment Transport,ENOT,Platts Harris Ltd,A038987,08/01/2020,1388525,932.45,Non Scheduled Maintenance - Parts
North West Leicestershire District Council,31UH,Street Management,Environment Transport,ENOT,Second 2 None,A031408,08/01/2020,1388532,1000,Vehicle Valeting
North West Leicestershire District Council,31UH,Planning & Development,Environment - Development Control,EDC,Foxley Earthworks Ltd,A045840,08/01/2020,1388537,1800,River Mease Project Expenditure
North West Leicestershire District Council,31UH,Planning & Development,Environment - Development Control,EDC,TMP Worldwide Ltd,A045319,08/01/2020,1388541,605.29,Advertising
North West Leicestershire District Council,31UH,Planning & Development,Environment - Development Control,EDC,Air Quality Consultants,A031783,08/01/2020,1388542,750,External Legal Fees & Advice
North West Leicestershire District Council,31UH,Finance,Financial Planning,FINPLA,Mazars LLP,A045078,08/01/2020,1388551,9725,Audit Commision Fees
North West Leicestershire District Council,31UH,Street Management,Environment Transport,ENOT,Lee Wells Autobodies Ltd,A031849,08/01/2020,1388583,620,Non Insurance Damage
North West Leicestershire District Council,31UH,Housing Repairs,HRA Housing Repairs & Maintenance,HRAHRM,RammSanderson Ecology Ltd,A043142,08/01/2020,1388417,622,Legal & Professional Services
North West Leicestershire District Council,31UH,Housing Repairs,HRA Housing Repairs & Maintenance,HRAHRM,John Merison BMC Ltd,A001092,08/01/2020,1388540,873,General Repairs
North West Leicestershire District Council,31UH,Leisure & Culture,Cultural Services Arts & Events,CULTEV,Field and Lawn Ltd,A042594,08/01/2020,1388591,450,Coalville Christmas Decorations
North West Leicestershire District Council,31UH,Leisure & Culture,Cultural Services Arts & Events,CULTEV,Field and Lawn Ltd,A042594,08/01/2020,1388592,1050,Coalville Christmas Decorations
North West Leicestershire District Council,31UH,Leisure & Culture,Cultural Services Arts & Events,CULTEV,Field and Lawn Ltd,A042594,08/01/2020,1388593,5500,Coalville Christmas Decorations
North West Leicestershire District Council,31UH,Housing,HRA Housing Management,HRAHM,Coalville Yellow Cabs,A041983,08/01/2020,1388598,269.5,Public Transport
North West Leicestershire District Council,31UH,Finance,Financial Planning,FINPLA,Leicestershire County Council Pension Fund,A028310,08/01/2020,1388602,900,Added Years/Capital Cost
North West Leicestershire District Council,31UH,Finance,Financial Planning,FINPLA,Leicestershire County Council Pension Fund,A028310,08/01/2020,1388603,1425,Added Years/Capital Cost
North West Leicestershire District Council,31UH,Street Management,Environment Parks,ENOP,Plantscape Ltd,A033650,08/01/2020,1388611,314,Operational Purchases
North West Leicestershire District Council,31UH,Housing Strategy,Community - Housing Strategy,HS,Home Connections Lettings Ltd,A044386,08/01/2020,1388614,400,Computing
North West Leicestershire District Council,31UH,Housing Strategy,Community - Housing Strategy,HS,MRC Community Action,A001208,08/01/2020,1388616,312.5,Stride Furniture Scheme
North West Leicestershire District Council,31UH,Economic Development,Business Focus Group,BFG,Building Business Consultancy Ltd,A045433,08/01/2020,1388619,3333.34,Consultants Fees
North West Leicestershire District Council,31UH,Corporate Director,Human Resources,HR,Wider Plan Ltd,A043948,08/01/2020,1388633,2219.2,Staff Benefits Scheme
North West Leicestershire District Council,31UH,Housing,HRA Housing Management,HRAHM,Aareon UK Ltd,A045197,08/01/2020,1388642,870,Contract Payments (Other) Ext
North West Leicestershire District Council,31UH,Street Management,Environment Parks,ENOP,Data Academy Ltd,A043706,08/01/2020,1388650,1692.08,Training Expenses
North West Leicestershire District Council,31UH,Planning & Development,Environment - Development Control,EDC,Valuation Office Agency,A034291,08/01/2020,1388651,284.4,External Legal Fees & Advice
North West Leicestershire District Council,31UH,Legal & Democratic,Legal Services,LDLS,Sellick Partnership (East Midlands) Limited,A036668,08/01/2020,1388658,1443.72,Agency Staff
North West Leicestershire District Council,31UH,Legal & Democratic,Legal Services,LDLS,Sellick Partnership (East Midlands) Limited,A036668,08/01/2020,1388663,1635.64,Agency Staff
North West Leicestershire District Council,31UH,Street Management,Environment Parks,ENOP,Data Academy Ltd,A043706,08/01/2020,1388684,1692.08,Training Expenses
North West Leicestershire District Council,31UH,Environmental Health,Environmental Health & Licensing,EEHL,Vivid Resourcing,A044601,08/01/2020,1388516,1335.55,Agency Staff
North West Leicestershire District Council,31UH,Street Management,Environment - Street Scene,ESS,NPS Peterborough Ltd,A044569,08/01/2020,1388518,10000,Legal & Professional Services
North West Leicestershire District Council,31UH,Information Technology,ICT Services,ICT,ACS Systems (UK) Ltd T/a ACS Office Solutions,A043447,08/01/2020,1388538,330,Admin Equipment - Hire/Rental
North West Leicestershire District Council,31UH,Environmental Health,Environmental Health & Licensing,EEHL,Vivid Resourcing,A044601,08/01/2020,1388582,425.64,Agency Staff
North West Leicestershire District Council,31UH,Environmental Health,Environmental Health & Licensing,EEHL,The Oyster Partnership Ltd,A032796,08/01/2020,1388585,891,Agency Staff
North West Leicestershire District Council,31UH,Environmental Health,Environmental Health & Licensing,EEHL,The Oyster Partnership Ltd,A032796,08/01/2020,1388586,264,Agency Staff
North West Leicestershire District Council,31UH,Street Management,Environment Parks,ENOP,Regarde Security Ltd,A013049,08/01/2020,1388612,451.5,Security Services
North West Leicestershire District Council,31UH,Corporate Director,Human Resources,HR,Jobs Go Public Resourcing  Limited,A018047,08/01/2020,1388620,500,Consultants Fees
North West Leicestershire District Council,31UH,Housing Repairs,HRA Housing Repairs & Maintenance,HRAHRM,Nuaire Trading Division of Polypipe Ltd,A045655,08/01/2020,1388624,1512,Operational Purchases
North West Leicestershire District Council,31UH,Finance,Financial Planning,FINPLA,Inform CPI Ltd,A041024,08/01/2020,1388630,5000,Computing
North West Leicestershire District Council,31UH,Finance,Financial Planning,FINPLA,Wilks Head & Eve LLP,A041842,08/01/2020,1388631,23580,Insurances
North West Leicestershire District Council,31UH,Finance,Financial Planning,FINPLA,Arlingclose Ltd,A035603,08/01/2020,1388632,8475,Consultants Fees
North West Leicestershire District Council,31UH,Finance,Financial Planning,FINPLA,Hinckley & Bosworth Borough Council,A000770,08/01/2020,1388641,227913.92,Shared Revs & Bens Partnership costs
North West Leicestershire District Council,31UH,Housing Strategy,Community - Housing Strategy,HS,Hometrack Data Systems HDS Ltd,A035392,08/01/2020,1388646,4500,Housing Needs Survey
North West Leicestershire District Council,31UH,Planning & Development,Environment Planning Policy,EPP,Gillespies LLP,A045048,08/01/2020,1388648,1023.75,Legal & Professional Services
North West Leicestershire District Council,31UH,Property Services,Property Commercial Lettings,PROPCL,Urban Planters Leicestershire (limited),A003371,08/01/2020,1388652,552.5,Internal Decorations
North West Leicestershire District Council,31UH,Housing Repairs,HRA Housing Repairs & Maintenance,HRAHRM,Leicestershire County Council,A028430,08/01/2020,1388677,959.31,Place Based Envirnmental Improvements
North West Leicestershire District Council,31UH,Finance,Financial Planning,FINPLA,Venn Group Limited,A028530,08/01/2020,1388682,1260,Agency Staff
North West Leicestershire District Council,31UH,Information Technology,ICT Services,ICT,Canon UK Ltd,A040459,08/01/2020,1388533,400,Contract Payments (Other) Ext
North West Leicestershire District Council,31UH,Property Services,Property Commercial Lettings,PROPCL,Purchase Power,A008204,08/01/2020,1388653,2003.12,Postages
North West Leicestershire District Council,31UH,Information Technology,ICT Services,ICT,Sec-1,A036989,08/01/2020,1388655,1700,Admin Equipment - Maintenance
North West Leicestershire District Council,31UH,Street Management,Environment Transport,ENOT,R D MOORE LTD,N001125092,08/01/2020,1388877,570,Repairs - Parts
North West Leicestershire District Council,31UH,Property Services,Property Facilities Management,PROPFM,John Merison BMC Ltd,A001092,08/01/2020,1388888,2380,General Repairs
North West Leicestershire District Council,31UH,Finance,Exchequer Services,EXCH,Capita Business Services Ltd,A002968,08/01/2020,1388890,16500,Computing
North West Leicestershire District Council,31UH,Housing Repairs,HRA Housing Repairs & Maintenance,HRAHRM,Britannia Security & Maintenance Ltd,A045813,09/01/2020,1387662,2995,Housing repairs
North West Leicestershire District Council,31UH,Information Technology,ICT Services,ICT,ACS Systems (UK) Ltd T/a ACS Office Solutions,A043447,15/01/2020,1387332,3259.2,Computing
North West Leicestershire District Council,31UH,Housing Repairs,HRA Housing Repairs & Maintenance,HRAHRM,TECSERV UK LIMITED,A028261,15/01/2020,1387583,3997.41,Door Entry Systems
North West Leicestershire District Council,31UH,Housing Repairs,HRA Housing Repairs & Maintenance,HRAHRM,TECSERV UK LIMITED,A028261,15/01/2020,1387584,9664.05,Door Entry Systems
North West Leicestershire District Council,31UH,Housing Repairs,HRA Housing Repairs & Maintenance,HRAHRM,TECSERV UK LIMITED,A028261,15/01/2020,1387589,297.5,Door Entry Systems
North West Leicestershire District Council,31UH,Finance,Financial Planning,FINPLA,Proactis Ltd,A043852,15/01/2020,1388405,4120,Computing
North West Leicestershire District Council,31UH,Neighbourhoods & Communities,N & C Community Safety,NACCS,Broadland Guarding Services Ltd,A042635,15/01/2020,1388634,5151.55,Agency Staff
North West Leicestershire District Council,31UH,Housing,HRA Housing Management,HRAHM,Readings Property Group Ltd,A045486,15/01/2020,1387606,855,Legal & Professional Services
North West Leicestershire District Council,31UH,Chief Exec,Chief Executive,CHEX,Rushcliffe Borough Council,A001425,15/01/2020,1387966,567,Consultants Fees
North West Leicestershire District Council,31UH,Street Management,Environment Parks,ENOP,Keith Cook Training Services,A027792,15/01/2020,1388589,477,Training Expenses
North West Leicestershire District Council,31UH,Chief Exec,Chief Executive,CHEX,Rushcliffe Borough Council,A001425,15/01/2020,1388615,708.75,Consultants Fees
North West Leicestershire District Council,31UH,Housing,HRA Housing Management,HRAHM,Aareon UK Ltd,A045197,15/01/2020,1388941,870,Contract Payments (Other) Ext
North West Leicestershire District Council,31UH,Housing,HRA Housing Management,HRAHM,Aareon UK Ltd,A045197,15/01/2020,1388942,870,Contract Payments (Other) Ext
North West Leicestershire District Council,31UH,Housing,HRA Housing Management,HRAHM,Aareon UK Ltd,A045197,15/01/2020,1388943,870,Contract Payments (Other) Ext
North West Leicestershire District Council,31UH,Housing,HRA Housing Management,HRAHM,Aareon UK Ltd,A045197,15/01/2020,1388944,870,Contract Payments (Other) Ext
North West Leicestershire District Council,31UH,Housing,HRA Housing Management,HRAHM,Alysium Consulting,A043813,15/01/2020,1388947,447.5,Contract Payments (Other) Ext
North West Leicestershire District Council,31UH,Housing,HRA Housing Management,HRAHM,Aareon UK Ltd,A045197,15/01/2020,1388951,2610,Contract Payments (Other) Ext
North West Leicestershire District Council,31UH,Housing,HRA Housing Management,HRAHM,Aareon UK Ltd,A045197,15/01/2020,1388952,2463.8,Contract Payments (Other) Ext
North West Leicestershire District Council,31UH,Housing,HRA Housing Management,HRAHM,Aareon UK Ltd,A045197,15/01/2020,1388953,1740,Contract Payments (Other) Ext
North West Leicestershire District Council,31UH,Housing,HRA Housing Management,HRAHM,Aareon UK Ltd,A045197,15/01/2020,1388954,3480,Contract Payments (Other) Ext
North West Leicestershire District Council,31UH,Housing,HRA Housing Management,HRAHM,Aareon UK Ltd,A045197,15/01/2020,1388955,2610,Contract Payments (Other) Ext
North West Leicestershire District Council,31UH,Housing,HRA Housing Management,HRAHM,Aareon UK Ltd,A045197,15/01/2020,1388956,1740,Contract Payments (Other) Ext
North West Leicestershire District Council,31UH,Street Management,Environment - Street Scene,ESS,IDP Group,A045557,15/01/2020,1388959,618.75,Contract Payments (Other) Ext
North West Leicestershire District Council,31UH,Housing,HRA Housing Management,HRAHM,Taylor Bloxham Ltd,A037241,15/01/2020,1388984,847,Annual Report To Tenants
North West Leicestershire District Council,31UH,Housing,HRA Housing Management,HRAHM,Aareon UK Ltd,A045197,15/01/2020,1388988,1740,Contract Payments (Other) Ext
North West Leicestershire District Council,31UH,Street Management,Environment Parks,ENOP,White Young Green Environmental Ltd,A030438,15/01/2020,1388994,1149,Legal & Professional Services
North West Leicestershire District Council,31UH,Street Management,Environment - Street Scene,ESS,4 Planning Delivers Ltd,A043779,15/01/2020,1389000,1990,Training Expenses
North West Leicestershire District Council,31UH,Legal & Democratic,Civic Expenses,LDCE,The Association of Electoral Administrators Ltd,A033402,15/01/2020,1389001,740,Training Expenses
North West Leicestershire District Council,31UH,Legal & Democratic,Civic Expenses,LDCE,The Association of Electoral Administrators Ltd,A033402,15/01/2020,1389002,740,Training Expenses
North West Leicestershire District Council,31UH,Neighbourhoods & Communities,N & C Community Safety,NACCS,Age Concern Leics & Rutland,A041115,15/01/2020,1389012,5390,Grants
North West Leicestershire District Council,31UH,Information Technology,ICT Services,ICT,ACS Systems (UK) Ltd T/a ACS Office Solutions,A043447,15/01/2020,1387392,1283,Computing
North West Leicestershire District Council,31UH,Housing Repairs,HRA Housing Repairs & Maintenance,HRAHRM,Bentleys Garden Buildings,A045751,15/01/2020,1388493,13272.47,Housing repairs
North West Leicestershire District Council,31UH,Street Management,Environment Parks,ENOP,Keith Cook Training Services,A027792,15/01/2020,1388590,490,Training Expenses
North West Leicestershire District Council,31UH,Property Services,Property Facilities Management,PROPFM,Regarde Security Ltd,A013049,15/01/2020,1388917,301,Security Services
North West Leicestershire District Council,31UH,Property Services,Property Commercial Lettings,PROPCL,John Merison BMC Ltd,A001092,15/01/2020,1388921,264.61,General Repairs
North West Leicestershire District Council,31UH,Property Services,Property Facilities Management,PROPFM,Regarde Security Ltd,A013049,15/01/2020,1388925,602,Building Security
North West Leicestershire District Council,31UH,Property Services,Property Facilities Management,PROPFM,Regarde Security Ltd,A013049,15/01/2020,1388927,438.65,Building Security
North West Leicestershire District Council,31UH,Property Services,Property Facilities Management,PROPFM,Bell Decorating Group,A045745,15/01/2020,1388935,13500,Contract Payments (Other) Ext
North West Leicestershire District Council,31UH,Property Services,Property Facilities Management,PROPFM,John Merison BMC Ltd,A001092,15/01/2020,1388937,335.77,General Repairs
North West Leicestershire District Council,31UH,Information Technology,ICT Services,ICT,Phoenix Software Limited,A001298,15/01/2020,1388946,1518.3,Admin Equipment - Hire/Rental
North West Leicestershire District Council,31UH,Street Management,Environment Transport,ENOT,Safety-Kleen Uk Ltd,A001431,15/01/2020,1388964,337.14,Operational Equipment - Rep & Maint
North West Leicestershire District Council,31UH,Leisure & Culture,Cultural Services Arts & Events,CULTEV,The Fuel Factory,A045625,15/01/2020,1388968,318.75,Civic Events - Carol Service
North West Leicestershire District Council,31UH,Street Management,Environment Transport,ENOT,Calor Gas Limited,A032686,15/01/2020,1388980,1173.04,Gas
North West Leicestershire District Council,31UH,Information Technology,ICT Services,ICT,Canon UK Ltd,A040459,15/01/2020,1388983,318.71,General Operational Equipment
North West Leicestershire District Council,31UH,Environmental Health,Environmental Health & Licensing,EEHL,Eville And Jones Limited,A033670,15/01/2020,1389003,415.6,Vet Inspection
North West Leicestershire District Council,31UH,Finance,Financial Planning,FINPLA,Solace Group Ltd,A015641,15/01/2020,1389006,602,Training Expenses
North West Leicestershire District Council,31UH,Housing Repairs,HRA Housing Repairs & Maintenance,HRAHRM,Efficiency East Midlands Ltd,A040461,15/01/2020,1389010,700,Legal & Professional Services
North West Leicestershire District Council,31UH,Information Technology,ICT Services,ICT,Freedom Communications (UK) Ltd,A032826,15/01/2020,1389014,541.9,Broadband and telephone expenditure
North West Leicestershire District Council,31UH,Environmental Health,Environmental Health & Licensing,EEHL,The Oyster Partnership Ltd,A032796,15/01/2020,1389015,478.5,Agency Staff
North West Leicestershire District Council,31UH,Property Services,Property Facilities Management,PROPFM,Barlow Blinds,A040305,15/01/2020,1388497,348,General Repairs
North West Leicestershire District Council,31UH,Information Technology,ICT Services,ICT,ACS Systems (UK) Ltd T/a ACS Office Solutions,A043447,15/01/2020,1388963,518,Admin Equipment - Hire/Rental
North West Leicestershire District Council,31UH,Neighbourhoods & Communities,N & C Community Safety,NACCS,Posh Nosh (East Midlands) Ltd,A035300,15/01/2020,1389061,377.5,Community Safety Partnership
North West Leicestershire District Council,31UH,Street Management,Environment Transport,ENOT,Certas Energy Uk Ltd,A043448,15/01/2020,1389066,19309.76,Fuel
North West Leicestershire District Council,31UH,Legal & Democratic,Civic Expenses,LDCE,JB Tool Hire Ltd,A011490,15/01/2020,1388311,720,Election Fees
North West Leicestershire District Council,31UH,Street Management,Environment Transport,ENOT,Riverside Truck Rental Ltd,A045702,15/01/2020,1388662,2448.3,Hire Of Transport
North West Leicestershire District Council,31UH,Property Services,Property Facilities Management,PROPFM,Phs Group Ltd,A009237,15/01/2020,1389071,331.06,Cleaning & Domestic Equipment
North West Leicestershire District Council,31UH,Housing,HRA Housing Management,HRAHM,Aareon UK Ltd,A045197,15/01/2020,1389081,970,Contract Payments (Other) Ext
North West Leicestershire District Council,31UH,Street Management,Environment Transport,ENOT,Geesink Norba Limited,A017895,15/01/2020,1389282,275.45,Scheduled Servicing - Parts
North West Leicestershire District Council,31UH,Housing Repairs,HRA Housing Repairs & Maintenance,HRAHRM,Leicestershire County Council,A000950,15/01/2020,1388446,883.03,Tipping Charges
North West Leicestershire District Council,31UH,Housing Repairs,HRA Housing Repairs & Maintenance,HRAHRM,Leicestershire County Council,A000950,15/01/2020,1388447,1399.52,Tipping Charges
North West Leicestershire District Council,31UH,Street Management,Environment Transport,ENOT,Riverside Truck Rental Ltd,A045702,15/01/2020,1388660,2448.3,Hire Of Transport
North West Leicestershire District Council,31UH,Leisure & Culture,Cultural Services Arts & Events,CULTEV,Field and Lawn Ltd,A042594,15/01/2020,1389079,2345,Coalville Christmas Decorations
North West Leicestershire District Council,31UH,Property Services,Property Commercial Lettings,PROPCL,Angel Springs Limited T/A Water Logic,A035183,15/01/2020,1389082,290.72,Service Contracts - Premises costs
North West Leicestershire District Council,31UH,Information Technology,ICT Services,ICT,Phoenix Software Limited,A001298,15/01/2020,1389085,1900,Computing
North West Leicestershire District Council,31UH,Leisure & Culture,Sport & Physical Activity,SPA,Shepshed Ford,A045899,15/01/2020,1389099,975,Vehicle Hire and Repair
North West Leicestershire District Council,31UH,Street Management,Environment Transport,ENOT,Watling JCB Ltd,A032114,15/01/2020,1389256,880.98,Repairs - Parts
North West Leicestershire District Council,31UH,Street Management,Environment Transport,ENOT,Malvern Tyres,A035175,15/01/2020,1389263,679.32,Transport Costs - Tyres
North West Leicestershire District Council,31UH,Street Management,Environment Transport,ENOT,Westbury Industrial Supplies Limited,A009933,15/01/2020,1389265,789.01,Protective Clothing
North West Leicestershire District Council,31UH,Property Services,Property Commercial Lettings,PROPCL,Calbarrie Ltd,A021932,22/01/2020,1387620,3527,General Repairs
North West Leicestershire District Council,31UH,Housing Repairs,HRA Housing Repairs & Maintenance,HRAHRM,Travis Perkins Trading Co Ltd,A001693,22/01/2020,1388553,5183.64,General Materials
North West Leicestershire District Council,31UH,Housing Repairs,HRA Housing Repairs & Maintenance,HRAHRM,Travis Perkins Trading Co Ltd,A001693,22/01/2020,1388554,108675.38,General Materials
North West Leicestershire District Council,31UH,Housing Repairs,HRA Housing Repairs & Maintenance,HRAHRM,Travis Perkins Trading Co Ltd,A001693,22/01/2020,1388555,885,General Materials
North West Leicestershire District Council,31UH,Housing,HRA Housing Management,HRAHM,Readings Property Group Ltd,A045486,22/01/2020,1389084,760,Legal & Professional Services
North West Leicestershire District Council,31UH,Street Management,Environment - Street Scene,ESS,Dynamic Development Services Limited,A043778,22/01/2020,1389382,3108,Consultants Fees
North West Leicestershire District Council,31UH,Leisure & Culture,Sport & Physical Activity,SPA,S17 Photography,A032007,22/01/2020,1389416,275,LSA - SPORTS AWARDS Expenditure
North West Leicestershire District Council,31UH,Street Management,Environment Parks,ENOP,Gilvar Lining Ltd,A040848,22/01/2020,1389431,2160,General Repairs
North West Leicestershire District Council,31UH,Street Management,Environment - Street Scene,ESS,CIEH,A027750,22/01/2020,1389432,900,Professional Fees
North West Leicestershire District Council,31UH,Planning & Development,Building Control,EBC,Leicestershire County Council,A027423,22/01/2020,1389490,3186,Search Fees - L.C.C.
North West Leicestershire District Council,31UH,Planning & Development,Building Control,EBC,Leicestershire County Council,A027423,22/01/2020,1389491,2391,Search Fees - L.C.C.
North West Leicestershire District Council,31UH,Property Services,Property Facilities Management,PROPFM,Heat Tec Solutions Ltd,A045907,22/01/2020,1389541,2700.94,General Repairs
North West Leicestershire District Council,31UH,Property Services,Property Commercial Lettings,PROPCL,Syston Rolling Shutters Ltd t/a Syston Doors,A001624,22/01/2020,1385572,1199,General Repairs
North West Leicestershire District Council,31UH,Information Technology,ICT Services,ICT,Stone Computers Ltd,A023214,22/01/2020,1389063,1174.2,Computing
North West Leicestershire District Council,31UH,Housing,HRA Housing Management,HRAHM,ESPO,A000958,22/01/2020,1389087,258,Furniture
North West Leicestershire District Council,31UH,Environmental Health,Environmental Health & Licensing,EEHL,ALS,A044735,22/01/2020,1389088,420.8,Private & Pool Water Sampling
North West Leicestershire District Council,31UH,Leisure & Culture,Sport & Physical Activity,SPA,Measham Leisure Centre,A027454,22/01/2020,1389091,2395.72,Measham LC Lifestyle DD
North West Leicestershire District Council,31UH,Environmental Health,Environmental Health & Licensing,EEHL,Tennals Pest Control,A045705,22/01/2020,1389254,954.17,External Contractor Payments
North West Leicestershire District Council,31UH,Information Technology,ICT Services,ICT,Premier Paper Group,A042438,22/01/2020,1389378,583.85,Consumable Materials
North West Leicestershire District Council,31UH,Street Management,Environment - Street Scene,ESS,SLH Planning Solutions Limited,A044102,22/01/2020,1389379,3501,Consultants Fees
North West Leicestershire District Council,31UH,Street Management,Environment - Street Scene,ESS,Planning Jungle Limited,A043772,22/01/2020,1389380,300,Subscriptions
North West Leicestershire District Council,31UH,Street Management,Environment Parks,ENOP,Landscape Supply Company,A041669,22/01/2020,1389381,342.12,Operational Purchases
North West Leicestershire District Council,31UH,Information Technology,ICT Services,ICT,BT Business Direct,A039207,22/01/2020,1389388,612,Admin Equipment - Maintenance
North West Leicestershire District Council,31UH,Street Management,Environment Parks,ENOP,BPI Recycled Products,A017624,22/01/2020,1389396,941.85,Operational Purchases
North West Leicestershire District Council,31UH,Planning & Development,Environment Planning Policy,EPP,Planit-X Town & Country Planning Services Ltd,A045420,22/01/2020,1389398,1470,Local Development Framework
North West Leicestershire District Council,31UH,Street Management,Environment Transport,ENOT,Lee Wells Autobodies Ltd,A031849,22/01/2020,1389413,700,Non Insurance Damage
North West Leicestershire District Council,31UH,Leisure & Culture,Sport & Physical Activity,SPA,Elliott Group Limited,A005413,22/01/2020,1389414,505.72,Portable Accomodation and Secure Storage
North West Leicestershire District Council,31UH,Leisure & Culture,Sport & Physical Activity,SPA,Elliott Group Limited,A005413,22/01/2020,1389415,522.58,Portable Accomodation and Secure Storage
North West Leicestershire District Council,31UH,Planning & Development,Environment - Development Control,EDC,TMP Worldwide Ltd,A045319,22/01/2020,1389434,522.41,Advertising
North West Leicestershire District Council,31UH,Planning & Development,Environment - Development Control,EDC,TMP Worldwide Ltd,A045319,22/01/2020,1389435,672.1,Advertising
North West Leicestershire District Council,31UH,Housing Strategy,Community - Housing Strategy,HS,Language Line Solutions,A030172,22/01/2020,1389442,250,Telephone and Broadband
North West Leicestershire District Council,31UH,Finance,Financial Planning,FINPLA,Venn Group Limited,A028530,22/01/2020,1389445,2050,Agency Staff
North West Leicestershire District Council,31UH,Information Technology,ICT Services,ICT,Six Degrees Technology Group Ltd,A044205,22/01/2020,1389446,5477.45,Admin Equipment - Maintenance
North West Leicestershire District Council,31UH,Street Management,Environment - Street Scene,ESS,Leicestershire County Council,A027423,22/01/2020,1389455,320,Maintenance Contract
North West Leicestershire District Council,31UH,Information Technology,ICT Services,ICT,Adept Telecom Plc,A044193,22/01/2020,1389457,13320.75,Admin Equipment - Maintenance
North West Leicestershire District Council,31UH,Property Services,Property Commercial Lettings,PROPCL,John Merison BMC Ltd,A001092,22/01/2020,1389407,374.95,General Repairs
North West Leicestershire District Council,31UH,Housing,HRA Housing Management,HRAHM,Art of Brilliance Ltd,A041233,22/01/2020,1389470,531.5,Training Expenses
North West Leicestershire District Council,31UH,Housing,HRA Housing Management,HRAHM,ESPO,A000958,22/01/2020,1389471,300,Stationery
North West Leicestershire District Council,31UH,Information Technology,ICT Services,ICT,BT Business Direct,A039207,22/01/2020,1389464,397.44,Operational Equipment
North West Leicestershire District Council,31UH,Environmental Health,Environmental Health & Licensing,EEHL,The Oyster Partnership Ltd,A032796,22/01/2020,1389474,817,Agency Staff
North West Leicestershire District Council,31UH,Planning & Development,Environment Planning Policy,EPP,West Devon Borough Council,A045888,22/01/2020,1389488,2333,Subscriptions
North West Leicestershire District Council,31UH,Property Services,Property Facilities Management,PROPFM,Woolley Ecology Ltd,A045443,22/01/2020,1389489,2560,Contract Payments (Other) Ext
North West Leicestershire District Council,31UH,Street Management,Environment Parks,ENOP,Keith Cook Training Services,A027792,22/01/2020,1389467,450,Training Expenses
North West Leicestershire District Council,31UH,Street Management,Environment Transport,ENOT,Certas Energy Uk Ltd,A043448,22/01/2020,1389477,574.6,Fuel
North West Leicestershire District Council,31UH,Legal & Democratic,Civic Expenses,LDCE,Derby City Council,A042168,22/01/2020,1389650,500,Election Fees
North West Leicestershire District Council,31UH,Economic Development,Business Focus Group,BFG,Simon Foote Architects,A045677,22/01/2020,1389651,2100,Consultants Fees
North West Leicestershire District Council,31UH,Economic Development,Business Focus Group,BFG,Simon Foote Architects,A045677,22/01/2020,1389654,1875,Consultants Fees
North West Leicestershire District Council,31UH,Economic Development,Business Focus Group,BFG,Simon Foote Architects,A045677,22/01/2020,1389656,3150,Consultants Fees
North West Leicestershire District Council,31UH,Housing Repairs,HRA Housing Repairs & Maintenance,HRAHRM,European Asbestos Services Ltd,A045507,29/01/2020,1387177,17553.5,Contract Payments (Dws) Ext
North West Leicestershire District Council,31UH,Environmental Health,Environmental Health & Licensing,EEHL,Chine House Veterinary Hospital,A041398,29/01/2020,1388930,375,Vet Inspection
North West Leicestershire District Council,31UH,Environmental Health,Environmental Health & Licensing,EEHL,Chine House Veterinary Hospital,A041398,29/01/2020,1388931,315,Vet Inspection
North West Leicestershire District Council,31UH,Finance,Financial Planning,FINPLA,Michael Page International Recruitment Ltd,A041893,29/01/2020,1389013,3780,Agency Staff
North West Leicestershire District Council,31UH,Environmental Health,Environmental Health & Licensing,EEHL,ALS,A044735,29/01/2020,1389122,331.87,Private & Pool Water Sampling
North West Leicestershire District Council,31UH,Planning & Development,Environment - Development Control,EDC,Oxford Brookes University,A029579,29/01/2020,1389469,3080,Training Expenses
North West Leicestershire District Council,31UH,Street Management,Environment Parks,ENOP,Groundsman Tools & Supplies LLP,A030744,29/01/2020,1389512,253.63,Protective Clothing
North West Leicestershire District Council,31UH,Finance,Financial Planning,FINPLA,Michael Page International Recruitment Ltd,A041893,29/01/2020,1389537,2100,Agency Staff
North West Leicestershire District Council,31UH,Finance,Financial Planning,FINPLA,Michael Page International Recruitment Ltd,A041893,29/01/2020,1389538,2100,Agency Staff
North West Leicestershire District Council,31UH,Housing,HRA Housing Management,HRAHM,Aareon UK Ltd,A045197,29/01/2020,1389692,870,Contract Payments (Other) Ext
North West Leicestershire District Council,31UH,Housing,HRA Housing Management,HRAHM,Aareon UK Ltd,A045197,29/01/2020,1389693,870,Contract Payments (Other) Ext
North West Leicestershire District Council,31UH,Housing,HRA Housing Management,HRAHM,Aareon UK Ltd,A045197,29/01/2020,1389694,3480,Contract Payments (Other) Ext
North West Leicestershire District Council,31UH,Housing,HRA Housing Management,HRAHM,Aareon UK Ltd,A045197,29/01/2020,1389695,870,Contract Payments (Other) Ext
North West Leicestershire District Council,31UH,Housing,HRA Housing Management,HRAHM,Aareon UK Ltd,A045197,29/01/2020,1389696,2175,Contract Payments (Other) Ext
North West Leicestershire District Council,31UH,Housing,HRA Housing Management,HRAHM,Aareon UK Ltd,A045197,29/01/2020,1389697,870,Contract Payments (Other) Ext
North West Leicestershire District Council,31UH,Housing,HRA Housing Management,HRAHM,Aareon UK Ltd,A045197,29/01/2020,1389698,870,Contract Payments (Other) Ext
North West Leicestershire District Council,31UH,Housing,HRA Housing Management,HRAHM,Aareon UK Ltd,A045197,29/01/2020,1389699,870,Contract Payments (Other) Ext
North West Leicestershire District Council,31UH,Chief Exec,Chief Executive,CHEX,Rushcliffe Borough Council,A001425,29/01/2020,1389703,567,Consultants Fees
North West Leicestershire District Council,31UH,Property Services,Property Facilities Management,PROPFM,John Merison BMC Ltd,A001092,29/01/2020,1389770,573.65,Cleaning & Domestic Equipment
North West Leicestershire District Council,31UH,Housing Strategy,Community - Housing Strategy,HS,MRC Community Action,A001208,29/01/2020,1389771,272.5,Stride Furniture Scheme
North West Leicestershire District Council,31UH,Housing Strategy,Community - Housing Strategy,HS,MRC Community Action,A001208,29/01/2020,1389772,412.5,HRA Hardship Fund Expenditure
North West Leicestershire District Council,31UH,Housing Strategy,Community - Housing Strategy,HS,MRC Community Action,A001208,29/01/2020,1389773,312.5,HRA Hardship Fund Expenditure
North West Leicestershire District Council,31UH,Housing Strategy,Community - Housing Strategy,HS,MRC Community Action,A001208,29/01/2020,1389774,309.5,HRA Hardship Fund Expenditure
North West Leicestershire District Council,31UH,Housing,HRA Housing Management,HRAHM,MRC Community Action,A001208,29/01/2020,1389776,307.5,HRA Hardship Fund Expenditure
North West Leicestershire District Council,31UH,Housing Repairs,HRA Housing Repairs & Maintenance,HRAHRM,Nuaire Trading Division of Polypipe Ltd,A045655,29/01/2020,1389782,1537,Non Scheduled Maintenance - Parts
North West Leicestershire District Council,31UH,Finance,Financial Planning,FINPLA,Venn Group Limited,A028530,29/01/2020,1389789,1640,Agency Staff
North West Leicestershire District Council,31UH,Information Technology,ICT Services,ICT,Phoenix Software Limited,A001298,29/01/2020,1389513,2025,Corporate IT Licences
North West Leicestershire District Council,31UH,Environmental Health,Environmental Health & Licensing,EEHL,Chine House Veterinary Hospital,A041398,29/01/2020,1389686,315,Vet Inspection
North West Leicestershire District Council,31UH,Information Technology,ICT Services,ICT,Cuttlefish Multimedia Ltd,A032102,29/01/2020,1389689,1718.33,Website Maintenance
North West Leicestershire District Council,31UH,Corporate Director,Human Resources,HR,InPhase Ltd,A044108,29/01/2020,1389700,500,Licences
North West Leicestershire District Council,31UH,Corporate Director,Human Resources,HR,InPhase Ltd,A044108,29/01/2020,1389701,451.5,Consultants Fees
North West Leicestershire District Council,31UH,Corporate Director,Human Resources,HR,InPhase Ltd,A044108,29/01/2020,1389702,6000,Consultants Fees
North West Leicestershire District Council,31UH,Street Management,Environment - Street Scene,ESS,Clear Skies Software Ltd,A029730,29/01/2020,1389706,1850,Computer Software Maintenance
North West Leicestershire District Council,31UH,Corporate Director,Human Resources,HR,Health Management Ltd,A038840,29/01/2020,1389708,270,Medical Fees
North West Leicestershire District Council,31UH,Property Services,Property Commercial Lettings,PROPCL,Coalville Cleaning Services,A003037,29/01/2020,1389723,615.33,Contract Cleaning
North West Leicestershire District Council,31UH,Property Services,Property Commercial Lettings,PROPCL,Coalville Cleaning Services,A003037,29/01/2020,1389724,327.17,Contract Cleaning
North West Leicestershire District Council,31UH,Street Management,Environment Parks,ENOP,Keith Cook Training Services,A027792,29/01/2020,1389748,535,Training Expenses
North West Leicestershire District Council,31UH,Leisure & Culture,Cultural Services Arts & Events,CULTEV,Big Difference Company,A044922,29/01/2020,1389761,550,N.W.L. Arts Festival
North West Leicestershire District Council,31UH,Housing,HRA Housing Management,HRAHM,MRC Community Action,A001208,29/01/2020,1389777,606.5,HRA Hardship Fund Expenditure
North West Leicestershire District Council,31UH,Planning & Development,Environment - Development Control,EDC,TMP Worldwide Ltd,A045319,29/01/2020,1389786,951.92,Advertising
North West Leicestershire District Council,31UH,Planning & Development,Environment - Development Control,EDC,TMP Worldwide Ltd,A045319,29/01/2020,1389787,442.78,Advertising
North West Leicestershire District Council,31UH,Street Management,Environment Transport,ENOT,Danline International Ltd,A029265,29/01/2020,1389704,267.5,Operational Purchases
North West Leicestershire District Council,31UH,Property Services,Property Commercial Lettings,PROPCL,Horizon Control Ltd,A044513,29/01/2020,1386495,600,Alt & Mtce-Fixed Plant
North West Leicestershire District Council,31UH,Chief Exec,Chief Executive,CHEX,IDP Group,A045557,29/01/2020,1389812,1350,Consultants Fees
North West Leicestershire District Council,31UH,Housing Repairs,HRA Housing Repairs & Maintenance,HRAHRM,DMW Environmental Safety Ltd,A044203,08/01/2020,1388509,771.44,Legal & Professional Services
North West Leicestershire District Council,31UH,Property Services,Property Commercial Lettings,PROPCL,Water Plus Limited,A044043,08/01/2020,1388512,1239.98,Water Charges (Metered)
North West Leicestershire District Council,31UH,Finance,Exchequer Services,EXCH,Comensura Limited,A036958,08/01/2020,1388552,34255.87,Agency Staff
North West Leicestershire District Council,31UH,Street Management,Environment - Street Scene,ESS,Hinckley & Bosworth Borough Council,A000770,08/01/2020,1388558,333.33,External Legal Fees & Advice
North West Leicestershire District Council,31UH,Housing,HRA Housing Management,HRAHM,JLA Limited,A043639,08/01/2020,1388559,302,Cleaning & Domestic Equipment
North West Leicestershire District Council,31UH,Housing,HRA Housing Management,HRAHM,JLA Limited,A043639,08/01/2020,1388560,282,Cleaning & Domestic Equipment
North West Leicestershire District Council,31UH,Finance,Exchequer Services,EXCH,Click Travel Ltd,A044308,08/01/2020,1388569,3728.36,Travel and Subsistence
North West Leicestershire District Council,31UH,Finance,Exchequer Services,EXCH,Click Travel Ltd,A044308,08/01/2020,1388571,1779.41,Travel and Subsistence
North West Leicestershire District Council,31UH,Housing,HRA Housing Management,HRAHM,JLA Limited,A043639,08/01/2020,1388573,442,Cleaning & Domestic Equipment
North West Leicestershire District Council,31UH,Street Management,Environment - Street Scene,ESS,Siemens Energy Services Ltd,A024546,08/01/2020,1388584,388.54,General Repairs
North West Leicestershire District Council,31UH,Finance,Exchequer Services,EXCH,Comensura Limited,A036958,08/01/2020,1388587,3756.27,Agency Staff
North West Leicestershire District Council,31UH,Street Management,Environment Parks,ENOP,Leicestershire County Council,A000950,08/01/2020,1388606,341.07,Contract Cleaning
North West Leicestershire District Council,31UH,Street Management,Environment Parks,ENOP,SUEZ Recycling and Recovery UK Ltd,A001108,08/01/2020,1388608,274.25,Tipping Charges
North West Leicestershire District Council,31UH,Economic Development,Business Focus Group,BFG,Redacted - Personal Data,A045897,08/01/2020,1388618,500,Grants
North West Leicestershire District Council,31UH,Finance,Financial Planning,FINPLA,Sports & Leisure Management Ltd,A045556,08/01/2020,1388622,147731,Contract Payments (Other) Ext
North West Leicestershire District Council,31UH,Street Management,Environment Transport,ENOT,Riverside Truck Rental Ltd,A045702,15/01/2020,1388661,-1130,Hire Of Transport
North West Leicestershire District Council,31UH,Housing,HRA Housing Management,HRAHM,JLA Limited,A043639,08/01/2020,1388669,427.84,Cleaning & Domestic Equipment
North West Leicestershire District Council,31UH,Housing,HRA Housing Management,HRAHM,Water Plus Limited,A044043,08/01/2020,1388673,900.03,Water Charges (Metered)
North West Leicestershire District Council,31UH,Chief Exec,Chief Executive,CHEX,Sue's Snack Van,A045898,08/01/2020,1388678,500,Subsistence - Employees
North West Leicestershire District Council,31UH,Property Services,Property Facilities Management,PROPFM,Water Plus Limited,A044043,08/01/2020,1388679,1076.66,Water Charges (Metered)
North West Leicestershire District Council,31UH,Property Services,Property Commercial Lettings,PROPCL,British Telecommunications Plc,A000233,08/01/2020,1388681,549.86,Telephones
North West Leicestershire District Council,31UH,Housing Repairs,HRA Housing Repairs & Maintenance,HRAHRM,Kaefer Ltd,A044187,08/01/2020,1388886,8328.27,Contract Payments (Dws) Ext
North West Leicestershire District Council,31UH,Housing,HRA Housing Management,HRAHM,H M C S,A033868,09/01/2020,1388896,1746,Legal & Professional Services
North West Leicestershire District Council,31UH,Legal & Democratic,Legal Services,LDLS,Information Commissioner,A032156,09/01/2020,1388898,2895,Subscriptions
North West Leicestershire District Council,31UH,Finance,Exchequer Services,EXCH,Severn Trent Online,A042250,09/01/2020,1388901,326,Conveyancing Searches
North West Leicestershire District Council,31UH,Finance,Exchequer Services,EXCH,Rics.com,A042250,09/01/2020,1388901,420,Training Expenses
North West Leicestershire District Council,31UH,Finance,Exchequer Services,EXCH,Apple,A042250,09/01/2020,1388901,306.44,Repair Operational Equipment
North West Leicestershire District Council,31UH,Finance,Exchequer Services,EXCH,Office Furniture Online,A042250,09/01/2020,1388902,1817,Office Furniture
North West Leicestershire District Council,31UH,Finance,Exchequer Services,EXCH,Total Gas & Power,A033385,09/01/2020,1388903,16358.22,Electricity
North West Leicestershire District Council,31UH,Finance,Financial Planning,FINPLA,Department for Communities & Local Government,A028518,09/01/2020,1388909,1229665,Subsidy Receipts * Repayments
North West Leicestershire District Council,31UH,Finance,Financial Planning,FINPLA,Leicestershire County Council,A000950,09/01/2020,1388910,4399445,Precept
North West Leicestershire District Council,31UH,Finance,Financial Planning,FINPLA,The Office of the Police and Crime Commissioner for Leicestershire,A007096,09/01/2020,1388911,759432.57,Precept
North West Leicestershire District Council,31UH,Finance,Financial Planning,FINPLA,"Leicester, Leicestershire & Rutland Fire Authority",A028339,09/01/2020,1388912,226911,Precept
North West Leicestershire District Council,31UH,Finance,Financial Planning,FINPLA,Leicestershire County Council,A000950,09/01/2020,1388913,3208668,Precept
North West Leicestershire District Council,31UH,Finance,Exchequer Services,EXCH,ESPO,A000958,09/01/2020,1388914,8687.71,Gas
North West Leicestershire District Council,31UH,Housing Repairs,HRA Housing Repairs & Maintenance,HRAHRM,Kaefer Ltd,A044187,15/01/2020,1388932,1118.15,Contract Payments (Dws) Ext
North West Leicestershire District Council,31UH,Housing Repairs,HRA Housing Repairs & Maintenance,HRAHRM,Kaefer Ltd,A044187,15/01/2020,1388933,4254.49,Contract Payments (Dws) Ext
North West Leicestershire District Council,31UH,Street Management,Environment Transport,ENOT,Parkers The Parts People,A044935,15/01/2020,1388966,-495,Vehicle Parts
North West Leicestershire District Council,31UH,Street Management,Environment Transport,ENOT,Parkers The Parts People,A044935,15/01/2020,1388967,495,Vehicle Parts
North West Leicestershire District Council,31UH,Property Services,Property Facilities Management,PROPFM,T Denman & Sons Ltd,A030887,15/01/2020,1388970,1320,General Repairs
North West Leicestershire District Council,31UH,Property Services,Property Facilities Management,PROPFM,T Denman & Sons Ltd,A030887,15/01/2020,1388971,-630,General Repairs
North West Leicestershire District Council,31UH,Finance,Exchequer Services,EXCH,Comensura Limited,A036958,15/01/2020,1388978,14917.11,Agency Staff
North West Leicestershire District Council,31UH,Finance,Exchequer Services,EXCH,HM Revenues & Customs,A038465,15/01/2020,1388986,1500,Payment To Inland Revenue
North West Leicestershire District Council,31UH,Economic Development,Business Focus Group,BFG,Redacted - Personal Data,A045873,15/01/2020,1389008,500,Grants
North West Leicestershire District Council,31UH,Housing,HRA Housing Management,HRAHM,Redacted - Personal Data,A045900,15/01/2020,1389009,1871.84,Under Occupancy Incentives
North West Leicestershire District Council,31UH,Information Technology,ICT Services,ICT,EE Ltd (Airtime),A018592,15/01/2020,1389069,2180.45,Mobile Telephones
North West Leicestershire District Council,31UH,Information Technology,ICT Services,ICT,EE Ltd (Airtime),A018592,15/01/2020,1389070,3196.55,Mobile Telephones
North West Leicestershire District Council,31UH,Legal & Democratic,Electoral & Land Charges,LDELC,SCI Print Limited,A028974,15/01/2020,1389089,489.42,Other Miscellaneous Expenses
North West Leicestershire District Council,31UH,Street Management,Environment - Street Scene,ESS,Midlands Co-operative  Ltd,A036454,15/01/2020,1389098,500,Welfare Funerals
North West Leicestershire District Council,31UH,Street Management,Environment Transport,ENOT,Terberg Matec UK Limited,A001647,,1389103,-2184.49,Repairs - Parts
North West Leicestershire District Council,31UH,Finance,Financial Planning,FINPLA,Zurich Municipal,A001835,15/01/2020,1389107,340115.59,Insurances
North West Leicestershire District Council,31UH,Finance,Financial Planning,FINPLA,Zurich Municipal,A001835,15/01/2020,1389108,9209.49,Insurances
North West Leicestershire District Council,31UH,Finance,Financial Planning,FINPLA,Zurich Municipal,A001835,15/01/2020,1389110,12988.7,Insurances
North West Leicestershire District Council,31UH,Finance,Financial Planning,FINPLA,Zurich Municipal,A001835,15/01/2020,1389111,1729.28,Insurances
North West Leicestershire District Council,31UH,Finance,Financial Planning,FINPLA,Zurich Municipal,A001835,15/01/2020,1389112,1493.51,Insurances
North West Leicestershire District Council,31UH,Finance,Financial Planning,FINPLA,Zurich Municipal,A001835,15/01/2020,1389120,2140,Insurances
North West Leicestershire District Council,31UH,Finance,Financial Planning,FINPLA,Zurich Municipal,A001835,15/01/2020,1389121,17545.59,Insurances
North West Leicestershire District Council,31UH,Housing Repairs,HRA Housing Repairs & Maintenance,HRAHRM,Everwarm Limited,A044582,15/01/2020,1389252,168433.37,Contract Payments (Dws) Ext
North West Leicestershire District Council,31UH,Housing,HRA Housing Management,HRAHM,Redacted - Personal Data,A032857,15/01/2020,1389280,854.28,Under Occupancy Incentives
North West Leicestershire District Council,31UH,Leisure & Culture,Sport & Physical Activity,SPA,Friends of Greenhill Tenants Association,A045773,15/01/2020,1389284,500,Grants
North West Leicestershire District Council,31UH,Finance,Exchequer Services,EXCH,Click Travel Ltd,A044308,15/01/2020,1389286,2947.75,Travel and Subsistence
North West Leicestershire District Council,31UH,Corporate Director,Human Resources,HR,The Disclosure & Barring Service,A027625,16/01/2020,1389287,463,DBS Checks
North West Leicestershire District Council,31UH,Legal & Democratic,Legal Services,LDLS,HMCTS,A033955,16/01/2020,1389288,355,Legal & Professional Services
North West Leicestershire District Council,31UH,Finance,Exchequer Services,EXCH,H M Land Registry,A000713,16/01/2020,1389290,432,Land Drainage
North West Leicestershire District Council,31UH,Finance,Exchequer Services,EXCH,Digicert,A042250,16/01/2020,1389293,651.69,SSl Certificates
North West Leicestershire District Council,31UH,Finance,Exchequer Services,EXCH,Comensura Limited,A036958,22/01/2020,1389394,24559.84,Agency Staff
North West Leicestershire District Council,31UH,Communications,Corporate - Customer Services,CS,Neopost Limited,A000079,22/01/2020,1389399,5000,Telephone Charge / Rental
North West Leicestershire District Council,31UH,Legal & Democratic,Legal Services,LDLS,Oadby & Wigston Borough Council,A001232,22/01/2020,1389400,1000,Legal & Professional Services
North West Leicestershire District Council,31UH,Legal & Democratic,Legal Services,LDLS,St John's Chambers,A044312,22/01/2020,1389401,500,External Legal Fees & Advice
North West Leicestershire District Council,31UH,Legal & Democratic,Legal Services,LDLS,Lamb Building Chambers,A045908,22/01/2020,1389402,3000,Legal & Professional Services
North West Leicestershire District Council,31UH,Legal & Democratic,Legal Services,LDLS,Bevan Brittan,A031366,22/01/2020,1389403,273,Legal & Professional Services
North West Leicestershire District Council,31UH,Legal & Democratic,Legal Services,LDLS,Browne Jacobson LLP,A000251,22/01/2020,1389404,455.5,Legal & Professional Services
North West Leicestershire District Council,31UH,Street Management,Environment Waste Management,ENOWM,Leicestershire County Council,A000950,22/01/2020,1389405,63412.96,Trade Refuse Disposal Costs
North West Leicestershire District Council,31UH,Housing,HRA Housing Management,HRAHM,JLA Limited,A043639,22/01/2020,1389425,282,Cleaning & Domestic Equipment
North West Leicestershire District Council,31UH,Finance,Exchequer Services,EXCH,Click Travel Ltd,A044308,22/01/2020,1389437,2830.02,Travel and Subsistence
North West Leicestershire District Council,31UH,Legal & Democratic,Legal Services,LDLS,MBL Seminars Limited,A041430,22/01/2020,1389438,270,Training Expenses
North West Leicestershire District Council,31UH,Legal & Democratic,Legal Services,LDLS,Act Now Training Ltd,A030708,22/01/2020,1389439,389,Training Expenses
North West Leicestershire District Council,31UH,Legal & Democratic,Legal Services,LDLS,Act Now Training Ltd,A030708,22/01/2020,1389440,389,Training Expenses
North West Leicestershire District Council,31UH,Finance,Financial Planning,FINPLA,Kings Armoured Security Services Ltd,A004468,22/01/2020,1389447,942.59,Cash in Transit Service
North West Leicestershire District Council,31UH,Street Management,Environment - Street Scene,ESS,Water Plus Limited,A044043,22/01/2020,1389448,2981.6,Sewerage & Environmental
North West Leicestershire District Council,31UH,Street Management,Environment - Street Scene,ESS,Water Plus Limited,A044043,22/01/2020,1389450,299.53,Sewerage & Environmental
North West Leicestershire District Council,31UH,Street Management,Environment - Street Scene,ESS,Water Plus Limited,A044043,22/01/2020,1389453,508.64,Sewerage & Environmental
North West Leicestershire District Council,31UH,Housing,HRA Housing Management,HRAHM,JLA Limited,A043639,22/01/2020,1389454,412,Cleaning & Domestic Equipment
North West Leicestershire District Council,31UH,Environmental Health,Environmental Health & Licensing,EEHL,College Garth Ltd T/A College Garth Kennels,A000385,22/01/2020,1389480,2353.76,Stray Dog Service
North West Leicestershire District Council,31UH,Communications,Corporate - Customer Services,CS,Neopost Limited,A000079,22/01/2020,1389482,516.25,Franking Machine Expenditure
North West Leicestershire District Council,31UH,Finance,Financial Planning,FINPLA,Leicestershire County Council,A000950,22/01/2020,1389485,1150,Legal & Professional Services
North West Leicestershire District Council,31UH,Street Management,Environment - Street Scene,ESS,Leicestershire County Council,A000950,22/01/2020,1389486,7487.97,Car Park Income
North West Leicestershire District Council,31UH,Housing Repairs,HRA Housing Repairs & Maintenance,HRAHRM,Sure Maintenance Ltd,A040460,22/01/2020,1389495,7533.6,Plumbing & Heating
North West Leicestershire District Council,31UH,Housing Repairs,HRA Housing Repairs & Maintenance,HRAHRM,Sure Maintenance Ltd,A040460,22/01/2020,1389497,499.36,Plumbing & Heating
North West Leicestershire District Council,31UH,Housing Repairs,HRA Housing Repairs & Maintenance,HRAHRM,Sure Maintenance Ltd,A040460,22/01/2020,1389498,873.88,Plumbing & Heating
North West Leicestershire District Council,31UH,Housing Repairs,HRA Housing Repairs & Maintenance,HRAHRM,Everwarm Limited,A044582,22/01/2020,1389499,9445.68,Contract Payments (Dws) Ext
North West Leicestershire District Council,31UH,Housing Repairs,HRA Housing Repairs & Maintenance,HRAHRM,Morgan Lambert Limited,A044192,22/01/2020,1389500,638.4,Servicing
North West Leicestershire District Council,31UH,Housing Repairs,HRA Housing Repairs & Maintenance,HRAHRM,Morgan Lambert Limited,A044192,22/01/2020,1389501,359.1,Servicing
North West Leicestershire District Council,31UH,Housing Repairs,HRA Housing Repairs & Maintenance,HRAHRM,Morgan Lambert Limited,A044192,22/01/2020,1389502,359.1,Servicing
North West Leicestershire District Council,31UH,Housing Repairs,HRA Housing Repairs & Maintenance,HRAHRM,Cawarden Company Limited,A045509,22/01/2020,1389503,16375,Contract Payments (Other) Ext
North West Leicestershire District Council,31UH,Housing Repairs,HRA Housing Repairs & Maintenance,HRAHRM,Sure Maintenance Ltd,A040460,22/01/2020,1389504,10013.41,Plumbing & Heating
North West Leicestershire District Council,31UH,Housing,HRA Housing Management,HRAHM,The Bridge (East Midlands),A033578,22/01/2020,1389505,50000,Grants
North West Leicestershire District Council,31UH,Housing Repairs,HRA Housing Repairs & Maintenance,HRAHRM,Morgan Lambert Limited,A044192,22/01/2020,1389508,359.1,Servicing
North West Leicestershire District Council,31UH,Housing,HRA Housing Management,HRAHM,Morgan Lambert Limited,A044192,22/01/2020,1389509,997.5,Servicing
North West Leicestershire District Council,31UH,Finance,Financial Planning,FINPLA,Campaign to Reopen the Ivanhoe Line-CRIL CIC,A045912,22/01/2020,1389510,5000,Green Infrastructure
North West Leicestershire District Council,31UH,Economic Development,Business Focus Group,BFG,Sence Accounting Ltd,A045918,22/01/2020,1389515,5000,Grants
North West Leicestershire District Council,31UH,Leisure & Culture,Sport & Physical Activity,SPA,Coalville Parochial Church Council,A045916,22/01/2020,1389523,490,Grants
North West Leicestershire District Council,31UH,Economic Development,Business Focus Group,BFG,The King Richard III Visitors Centre Trading Ltd,A045919,22/01/2020,1389540,250,Training Expenses
North West Leicestershire District Council,31UH,Neighbourhoods & Communities,N & C Neighbourhoods,NACN,Roots Community Singers,A042707,22/01/2020,1389653,500,Small Grant Scheme
North West Leicestershire District Council,31UH,Neighbourhoods & Communities,N & C Neighbourhoods,NACN,New Swannington Primary School,A035642,22/01/2020,1389671,250,Small Grant Scheme
North West Leicestershire District Council,31UH,Street Management,Environment Transport,ENOT,Post Office Limited,A008559,22/01/2020,1389676,1040,Licences - Road Fund Licence
North West Leicestershire District Council,31UH,Street Management,Environment Parks,ENOP,Leicestershire County Council,A000950,05/02/2020,1390105,341.07,Contract Cleaning
North West Leicestershire District Council,31UH,Finance,Financial Planning,FINPLA,Kegworth Parish Council,A000882,05/02/2020,1390110,638.42,Contributions
North West Leicestershire District Council,31UH,Legal & Democratic,Legal Services,LDLS,St John's Chambers,A044312,05/02/2020,1390113,450,External Legal Fees & Advice
North West Leicestershire District Council,31UH,Legal & Democratic,Legal Services,LDLS,Lamb Building Chambers,A045908,05/02/2020,1390114,1500,Legal & Professional Services
North West Leicestershire District Council,31UH,Legal & Democratic,Legal Services,LDLS,Thomson Reuters (Professional) UK Limited,A037595,05/02/2020,1390115,1137.65,Computing
North West Leicestershire District Council,31UH,Information Technology,ICT Services,ICT,Canon UK Ltd,A040459,05/02/2020,1390117,869.24,Equipment Operating Leases
North West Leicestershire District Council,31UH,Information Technology,ICT Services,ICT,Canon UK Ltd,A040459,05/02/2020,1390118,3822.88,Equipment Operating Leases
North West Leicestershire District Council,31UH,Housing,HRA Housing Management,HRAHM,Redacted - Personal Data,A045944,05/02/2020,1390121,250,Under Occupancy Incentives
North West Leicestershire District Council,31UH,Housing,HRA Housing Management,HRAHM,JLA Limited,A043639,05/02/2020,1390137,282,Cleaning & Domestic Equipment
North West Leicestershire District Council,31UH,Housing,HRA Housing Management,HRAHM,JLA Limited,A043639,05/02/2020,1390138,302,Cleaning & Domestic Equipment
North West Leicestershire District Council,31UH,Housing Repairs,HRA Housing Repairs & Maintenance,HRAHRM,Robert Woodhead Ltd,A043924,05/02/2020,1390147,125984.47,Contract Payments (Dws) Ext
North West Leicestershire District Council,31UH,Housing,HRA Housing Management,HRAHM,British Gas Trading Limited,A001978,05/02/2020,1390162,1038.3,Electricity
North West Leicestershire District Council,31UH,Housing,HRA Housing Management,HRAHM,British Gas Trading Limited,A001978,05/02/2020,1390163,365.19,Electricity
North West Leicestershire District Council,31UH,Housing,HRA Housing Management,HRAHM,British Gas Trading Limited,A001978,05/02/2020,1390164,380.9,Electricity
North West Leicestershire District Council,31UH,Finance,Financial Planning,FINPLA,Sports & Leisure Management Ltd,A045556,29/01/2020,1389685,44518.92,Payments To Contractor
North West Leicestershire District Council,31UH,Economic Development,Business Focus Group,BFG,Ashby De La Zouch Town Council,A000091,29/01/2020,1389713,12005.85,Contributions- Ashby Project
North West Leicestershire District Council,31UH,Economic Development,Business Focus Group,BFG,Ashby De La Zouch Town Council,A000091,29/01/2020,1389714,25335.87,Ashby Town Council - Neighbourhood Plan
North West Leicestershire District Council,31UH,Economic Development,Business Focus Group,BFG,Ashby De La Zouch Town Council,A000091,29/01/2020,1389715,25972.82,Precept
North West Leicestershire District Council,31UH,Legal & Democratic,Legal Services,LDLS,Lamb Building Chambers,A045908,29/01/2020,1389718,500,Legal & Professional Services
North West Leicestershire District Council,31UH,Finance,Exchequer Services,EXCH,Comensura Limited,A036958,29/01/2020,1389722,28638.08,Agency Staff
North West Leicestershire District Council,31UH,Leisure & Culture,Sport & Physical Activity,SPA,Measham Parish Council,A001082,29/01/2020,1389752,250,Small Grant Scheme
North West Leicestershire District Council,31UH,Leisure & Culture,Cultural Services TIC,CULTIC,Roberts Coaches Limited,A017327,29/01/2020,1389762,315.04,Ticket purchases
North West Leicestershire District Council,31UH,Economic Development,Business Focus Group,BFG,Diseworth Village Hall,A000492,29/01/2020,1389765,250,Small Grant Scheme
North West Leicestershire District Council,31UH,Housing,HRA Housing Management,HRAHM,Redacted - Personal Data,A045931,29/01/2020,1389766,250,Under Occupancy Incentives
North West Leicestershire District Council,31UH,Finance,Exchequer Services,EXCH,Click Travel Ltd,A044308,29/01/2020,1389788,3135.7,Travel and Subsistence
North West Leicestershire District Council,31UH,Housing Repairs,HRA Housing Repairs & Maintenance,HRAHRM,TECSERV UK LIMITED,A028261,08/01/2020,1388686,357.15,Door Entry Systems
North West Leicestershire District Council,31UH,Housing Repairs,HRA Housing Repairs & Maintenance,HRAHRM,TECSERV UK LIMITED,A028261,08/01/2020,1388687,423.24,Door Entry Systems
North West Leicestershire District Council,31UH,Housing Repairs,HRA Housing Repairs & Maintenance,HRAHRM,Orbis Property Protection Ltd,A028149,08/01/2020,1388692,838.65,Void Property Clearance Services
North West Leicestershire District Council,31UH,Housing Repairs,HRA Housing Repairs & Maintenance,HRAHRM,Orbis Property Protection Ltd,A028149,08/01/2020,1388694,334.43,Void Property Clearance Services
North West Leicestershire District Council,31UH,Housing Repairs,HRA Housing Repairs & Maintenance,HRAHRM,TECSERV UK LIMITED,A028261,08/01/2020,1388696,524.51,Door Entry Systems
North West Leicestershire District Council,31UH,Housing Repairs,HRA Housing Repairs & Maintenance,HRAHRM,Emperor Scaffolding Limited,A038405,08/01/2020,1388697,750,Hire Of Operational Equipment
North West Leicestershire District Council,31UH,Housing Repairs,HRA Housing Repairs & Maintenance,HRAHRM,Emperor Scaffolding Limited,A038405,08/01/2020,1388698,530,Hire Of Operational Equipment
North West Leicestershire District Council,31UH,Housing Repairs,HRA Housing Repairs & Maintenance,HRAHRM,Emperor Scaffolding Limited,A038405,08/01/2020,1388699,530,Hire Of Operational Equipment
North West Leicestershire District Council,31UH,Housing Repairs,HRA Housing Repairs & Maintenance,HRAHRM,Emperor Scaffolding Limited,A038405,08/01/2020,1388700,530,Hire Of Operational Equipment
North West Leicestershire District Council,31UH,Housing Repairs,HRA Housing Repairs & Maintenance,HRAHRM,Laker BMS Ltd,A031787,08/01/2020,1388708,289,Housing repairs
North West Leicestershire District Council,31UH,Housing Repairs,HRA Housing Repairs & Maintenance,HRAHRM,Laker BMS Ltd,A031787,08/01/2020,1388709,5539.78,Housing repairs
North West Leicestershire District Council,31UH,Housing Repairs,HRA Housing Repairs & Maintenance,HRAHRM,Laker BMS Ltd,A031787,08/01/2020,1388710,1863.76,Housing repairs
North West Leicestershire District Council,31UH,Housing Repairs,HRA Housing Repairs & Maintenance,HRAHRM,TECSERV UK LIMITED,A028261,08/01/2020,1388712,614.64,Door Entry Systems
North West Leicestershire District Council,31UH,Housing Repairs,HRA Housing Repairs & Maintenance,HRAHRM,Laker BMS Ltd,A031787,08/01/2020,1388713,289,Housing repairs
North West Leicestershire District Council,31UH,Housing Repairs,HRA Housing Repairs & Maintenance,HRAHRM,Laker BMS Ltd,A031787,08/01/2020,1388715,4511.56,Housing repairs
North West Leicestershire District Council,31UH,Housing Repairs,HRA Housing Repairs & Maintenance,HRAHRM,Laker BMS Ltd,A031787,08/01/2020,1388716,2806.43,Housing repairs
North West Leicestershire District Council,31UH,Housing Repairs,HRA Housing Repairs & Maintenance,HRAHRM,Orbis Property Protection Ltd,A028149,08/01/2020,1388735,334.43,Void Property Clearance Services
North West Leicestershire District Council,31UH,Housing Repairs,HRA Housing Repairs & Maintenance,HRAHRM,Orbis Property Protection Ltd,A028149,15/01/2020,1389048,949.79,Void Property Clearance Services
North West Leicestershire District Council,31UH,Housing Repairs,HRA Housing Repairs & Maintenance,HRAHRM,Cadent Gas limited,A032629,15/01/2020,1389051,560,Gas
North West Leicestershire District Council,31UH,Housing Repairs,HRA Housing Repairs & Maintenance,HRAHRM,Laker BMS Ltd,A031787,22/01/2020,1389458,9875.82,Housing repairs
North West Leicestershire District Council,31UH,Housing Repairs,HRA Housing Repairs & Maintenance,HRAHRM,Laker BMS Ltd,A031787,22/01/2020,1389459,6056.12,Housing repairs
North West Leicestershire District Council,31UH,Housing Repairs,HRA Housing Repairs & Maintenance,HRAHRM,Premier Mobility UK Ltd,A045304,22/01/2020,1389460,1800,Contract Payments (Dws) Ext
North West Leicestershire District Council,31UH,Housing Repairs,HRA Housing Repairs & Maintenance,HRAHRM,Laker BMS Ltd,A031787,29/01/2020,1389734,5597.9,Housing repairs
North West Leicestershire District Council,31UH,Housing Repairs,HRA Housing Repairs & Maintenance,HRAHRM,Premier Mobility UK Ltd,A045304,29/01/2020,1389735,1466.5,Contract Payments (Dws) Ext
North West Leicestershire District Council,31UH,Housing Repairs,HRA Housing Repairs & Maintenance,HRAHRM,Emperor Scaffolding Limited,A038405,29/01/2020,1389737,440,Hire Of Operational Equipment
North West Leicestershire District Council,31UH,Housing Repairs,HRA Housing Repairs & Maintenance,HRAHRM,Cadent Gas limited,A032629,29/01/2020,1389740,560,Gas
North West Leicestershire District Council,31UH,Housing Repairs,HRA Housing Repairs & Maintenance,HRAHRM,Emperor Scaffolding Limited,A038405,29/01/2020,1389742,590,Hire Of Operational Equipment
